bitfinex-derivatives/quotes_ETHF0:USTF0_20250422
["timestamp","ask_amount","ask_price","bid_price","bid_amount"]
[1745331557231,3.006,1648.2,1648.1,1.21325]
[1745331557532,8.251,1648.2,1648.1,1.21325]
[1745331558224,9.46417,1648.2,1648.0,1.22237718]
[1745331558419,7.34605,1648.1,1648.0,0.00910718]
[1745331559129,12.34605,1648.1,1648.0,0.00910718]
[1745331559633,1.21343,1647.9,1647.6,1.21355]
[1745331559834,11.3778,1647.8,1647.7,1.21354]
[1745331560329,8.17,1647.8,1647.7,1.21354]
[1745331561834,5.245,1647.8,1647.7,1.21354]
[1745331562026,1.65254283,1647.8,1647.7,6.21354]
[1745331562223,5.245,1648.1,1648.0,1.21332]
[1745331562632,3.95298,1648.1,1648.0,4.28462]
[1745331562937,1.16681,1648.1,1648.0,4.28462]
[1745331563232,6.04940718,1648.3,1648.2,1.21317]
[1745331563532,11.29440718,1648.3,1648.2,1.21317]
[1745331566438,5.25410718,1648.3,1648.2,1.21317]
[1745331567043,7.18e-06,1648.3,1648.2,9.42097]
[1745331567233,7.18e-06,1648.3,1648.2,15.74297]
[1745331567432,8.4528,1648.7,1648.6,1.21288]
[1745331567433,3.94698,1648.7,1648.6,1.21288]
[1745331567636,1.98871,1648.7,1648.6,1.21288]
[1745331567933,1e-05,1648.7,1648.6,1.21288]
[1745331569233,3.2078,1649.1,1649.0,1.21258]
[1745331569424,5.245,1649.2,1649.1,1.21251]
[1745331570534,5.245,1649.2,1649.1,4.32161]
[1745331571442,1.21251,1649.1,1649.0,6.322]
[1745331571741,7.36381,1649.1,1649.0,6.322]
[1745331572342,12.36381,1649.1,1649.0,6.322]
[1745331574041,12.36381,1649.1,1649.0,7.53458]
[1745331574340,1.21258,1649.0,1648.9,1.2126]
[1745331574541,7.20328,1649.0,1648.9,1.2126]
[1745331574742,12.20328,1649.0,1648.9,1.2126]
[1745331574943,1.21276,1648.8,1648.7,1.21275]
[1745331575144,1.21288,1648.6,1648.5,1.22198718]
[1745331575351,1.21305,1648.4,1648.1,3.03311]
[1745331575634,1.21303,1648.4,1648.3,1.21308]
[1745331575845,14.66383,1648.4,1648.3,1.21308]
[1745331576240,13.4508,1648.4,1648.3,1.21308]
[1745331576439,14.66383,1648.4,1648.3,7.53508]
[1745331576837,8.4508,1648.4,1648.3,7.53508]
[1745331577340,1.2131,1648.3,1648.2,0.00910718]
[1745331577541,1.21359,1647.7,1647.6,1.21361]
[1745331577845,9.66039,1647.7,1647.6,1.21361]
[1745331578736,8.4468,1647.7,1647.6,1.21361]
[1745331579847,8.4468,1647.7,1647.4,3.0344]
[1745331579848,13.4468,1647.7,1647.4,1.21373]
[1745331580147,3.2078,1647.5,1647.3,4.25239]
[1745331580333,5.24,1647.4,1647.3,4.24545751]
[1745331580538,5.24,1647.4,1647.3,1.21379]
[1745331580739,5.24,1647.4,1647.2,1.21384]
[1745331581244,3.2078,1647.3,1647.2,1.21391]
[1745331581444,3.2078,1647.3,1647.0,2.9574]
[1745331581645,3.2078,1647.3,1647.2,1.21391]
[1745331582843,6.7008,1647.5,1647.3,1.21377]
[1745331583045,6.69386751,1647.5,1647.4,1.21376]
[1745331583248,6.69386751,1647.5,1647.3,1.21378]
[1745331583543,1.21384,1647.3,1647.2,6.322]
[1745331583745,1.21384,1647.3,1647.2,6.31506751]
[1745331583945,4.42164,1647.3,1647.2,6.31506751]
[1745331584150,1.21391,1647.2,1647.1,3.0179]
[1745331585950,5.0,1647.2,1646.5,3.1088]
[1745331586245,2.9681,1647.4,1646.5,3.1088]
[1745331586246,3.2078,1646.9,1646.6,3.007]
[1745331586444,5.20044544,1647.1,1647.0,1.21406]
[1745331586638,0.00910718,1647.6,1647.1,3.03491]
[1745331586843,0.00217469,1647.6,1647.5,1.21369]
[1745331587047,0.00217469,1647.6,1647.5,6.21369]
[1745331587346,3.2078,1647.9,1647.5,11.322]
[1745331587544,6.0525,1647.9,1647.7,1.21352]
[1745331587748,7.26593,1647.9,1647.5,7.53562]
[1745331587947,6.0525,1647.9,1647.6,3.007]
[1745331588142,2.9027,1648.3,1647.9,1.21339]
[1745331588338,3.2078,1648.5,1648.0,3.007]
[1745331588544,2.8554,1648.6,1648.4,1.21303]
[1745331588545,5.7001,1648.6,1648.4,1.21303]
[1745331588738,5.7001,1648.6,1648.5,3.494]
[1745331588941,10.12078,1648.6,1648.5,6.5644]
[1745331589141,10.12078,1648.6,1648.5,3.494]
[1745331589551,8.9079,1648.6,1648.5,4.70695]
[1745331589849,10.12078,1648.6,1648.5,3.494]
[1745331590553,15.12078,1648.6,1648.5,3.494]
[1745331592349,21.44278,1648.6,1648.5,3.494]
[1745331592854,21.44278,1648.6,1648.5,3.49182531]
[1745331593059,16.44278,1648.6,1648.5,3.49182531]
[1745331593247,1.21325,1648.1,1648.0,3.493]
[1745331593448,4.42105,1648.1,1648.0,3.493]
[1745331593955,1.21332,1648.0,1647.9,0.00910718]
[1745331594154,7.06122,1648.0,1647.9,0.00910718]
[1745331594352,12.16043116,1648.0,1647.9,0.00910718]
[1745331594857,1.21354,1647.7,1647.6,3.493]
[1745331595053,4.42134,1647.7,1647.6,3.493]
[1745331595257,15.8425738,1647.7,1647.6,3.493]
[1745331595552,10.8425738,1647.7,1647.6,3.493]
[1745331595750,9.5298,1647.7,1647.4,2.9437]
[1745331595948,4.42149,1647.5,1647.4,2.9437]
[1745331596151,1.21376,1647.4,1647.3,78.43]
[1745331596352,4.19096,1647.4,1647.3,78.43]
[1745331596551,2.9772,1647.4,1647.3,78.43]
[1745331596850,4.19096,1647.4,1647.3,78.43]
[1745331597253,10.51296,1647.4,1647.3,78.43]
[1745331597655,1.21398,1647.1,1647.0,3.494]
[1745331597859,3.03519,1647.0,1646.5,74.936]
[1745331598160,4.42215,1646.6,1646.5,74.936]
[1745331598352,3.2078,1646.6,1646.5,78.43]
[1745331598551,4.42215,1646.6,1646.5,78.43]
[1745331598861,4.42215,1646.6,1646.5,81.3377]
[1745331599247,10.74415,1646.6,1646.5,81.3377]
[1745331600163,4.42215,1646.6,1646.5,81.3377]
[1745331600859,3.2078,1646.6,1646.5,81.3377]
[1745331601057,3.2078,1646.6,1646.5,82.55213]
[1745331601362,4.42215,1646.6,1646.5,81.3377]
[1745331601765,7.39655,1646.6,1646.5,81.3377]
[1745331602265,13.71855,1646.6,1646.5,81.3377]
[1745331602453,13.71855,1646.6,1646.5,78.43]
[1745331602656,18.71855,1646.6,1646.5,78.43]
[1745331602863,25.28312874,1646.6,1646.5,75.67785]
[1745331603064,1.21472,1646.1,1646.0,3.495]
[1745331603376,4.42252,1646.1,1646.0,3.495]
[1745331603562,1.21494,1645.8,1645.7,3.495]
[1745331603762,4.42274,1645.8,1645.7,6.4258]
[1745331604259,9.5298,1645.8,1645.7,6.4258]
[1745331604564,9.5298,1645.8,1645.7,12.64082]
[1745331604767,7.53694,1645.8,1645.7,11.4258]
[1745331604960,10.74474,1645.8,1645.7,6.4258]
[1745331606260,3.2078,1646.2,1646.0,1.21479]
[1745331606570,3.2078,1646.2,1646.1,81.2619]
[1745331606770,4.42245,1646.2,1646.1,81.2619]
[1745331607067,4.42245,1646.2,1646.1,78.481]
[1745331607268,10.74445,1646.2,1646.1,78.481]
[1745331608467,9.5298,1646.2,1646.1,79.69572]
[1745331608662,9.5298,1646.2,1646.1,84.69572]
[1745331609061,10.74445,1646.2,1646.1,83.481]
[1745331609260,4.42245,1646.2,1646.1,78.481]
[1745331609460,4.42245,1646.2,1646.1,82.51402]
[1745331609762,4.42245,1646.2,1646.1,81.2993]
[1745331610366,4.42245,1646.2,1646.1,82.51402]
[1745331611162,4.42245,1646.2,1646.1,81.2993]
[1745331611568,3.2078,1646.2,1646.1,82.51402]
[1745331611960,4.42245,1646.2,1646.1,82.51402]
[1745331612270,3.2078,1646.2,1646.1,82.51402]
[1745331612471,4.42245,1646.2,1646.1,81.2993]
[1745331613565,4.42245,1646.2,1646.1,74.985]
[1745331613767,4.42245,1646.2,1646.1,78.478]
[1745331613968,16.06177966,1646.2,1646.1,75.05332]
[1745331614167,22.48312059,1646.2,1646.1,72.75658]
[1745331614472,22.48312631,1646.2,1646.1,68.53034]
[1745331615173,22.48312631,1646.2,1646.1,65.84812]
[1745331615373,22.48312631,1646.2,1646.1,64.46324]
[1745331615674,22.48312631,1646.2,1646.1,62.73063]
[1745331615873,22.48312427,1646.2,1646.1,58.79099]
[1745331616074,22.48312427,1646.2,1646.1,55.95371]
[1745331616271,22.48312427,1646.2,1646.1,50.99273]
[1745331616477,22.48312427,1646.2,1646.1,45.52571]
[1745331617170,22.48312427,1646.2,1646.1,36.49174]
[1745331617366,22.48312427,1646.2,1646.1,34.87973]
[1745331617567,27.94722932,1646.2,1646.1,32.1401]
[1745331617768,30.89402932,1646.2,1646.1,32.1401]
[1745331618364,30.89402932,1646.2,1646.1,30.72278]
[1745331618563,30.89402932,1646.2,1646.1,29.2714]
[1745331619172,30.89402599,1646.2,1646.1,29.2714]
[1745331619478,25.89402599,1646.2,1646.1,29.2714]
[1745331619682,17.48312599,1646.2,1646.1,29.2714]
[1745331619877,6.322,1646.2,1646.1,33.45782]
[1745331620175,3.21690718,1646.7,1646.3,3.03639]
[1745331620371,3.21690718,1646.7,1646.6,1.21435]
[1745331620571,0.00910718,1646.7,1646.6,4.70835]
[1745331620768,1.22338718,1646.7,1646.6,3.494]
[1745331621273,4.43118718,1646.7,1646.6,3.494]
[1745331621672,11.04813433,1646.7,1646.6,3.494]
[1745331622180,11.04813433,1646.7,1646.6,0.94045]
[1745331622181,22.46944133,1646.7,1646.6,0.94045]
[1745331622580,1.21465,1646.2,1646.1,25.7784]
[1745331622782,1.21465,1646.2,1646.1,29.2724]
[1745331623074,4.42245,1646.2,1646.1,29.2724]
[1745331624174,10.74445,1646.2,1646.1,29.2724]
[1745331624373,6.322,1646.2,1646.1,35.48712]
[1745331625274,3.2078,1646.6,1646.1,34.2724]
[1745331625474,4.42217,1646.6,1646.5,1.21443]
[1745331625674,3.2078,1646.6,1646.5,4.70843]
[1745331625882,0.00910718,1646.7,1646.6,1.21435]
[1745331626277,0.00910718,1646.7,1646.6,8.96275]
[1745331626580,3.2078,1647.4,1646.6,7.7484]
[1745331626776,1.21365,1647.6,1647.1,3.03486]
[1745331626969,1.21376,1647.4,1647.3,1.21379]
[1745331627375,1.21375,1647.5,1647.3,6.21379]
[1745331627581,1.21375,1647.5,1647.4,3.96216]
[1745331627582,0.00910718,1647.5,1647.4,3.96216]
[1745331627979,3.2078,1647.8,1647.7,1.21354]
[1745331628177,4.42127,1647.8,1647.7,3.493]
[1745331628383,7.33957,1647.8,1647.7,3.493]
[1745331629187,13.66157,1647.8,1647.7,3.493]
[1745331631481,24.97365759,1647.8,1647.7,1.96092565]
[1745331631681,25.07288608,1647.8,1647.7,5.65e-06]
[1745331632078,29.84341608,1647.8,1647.2,75.02310718]
[1745331632279,4.42151,1647.3,1647.2,75.02310718]
[1745331632489,4.5207737,1647.3,1647.2,78.50917469]
[1745331632786,11.33363146,1647.3,1647.2,78.50917469]
[1745331632982,11.33363146,1647.3,1647.2,77.16838469]
[1745331633193,25.55653648,1647.3,1647.2,74.98591469]
[1745331633585,25.55654212,1647.3,1647.2,70.67381469]
[1745331633782,20.55654212,1647.3,1647.2,70.67381469]
[1745331634085,20.45726776,1647.3,1647.2,70.67381469]
[1745331634291,13.64441,1647.3,1647.2,69.42838469]
[1745331634796,10.74351,1647.3,1647.2,69.42838469]
[1745331635177,3.2078,1647.3,1647.2,70.64217469]
[1745331635490,1.21371,1647.3,1647.2,69.42838469]
[1745331635885,1.21371,1647.3,1647.2,72.10158469]
[1745331636683,4.42151,1647.3,1647.2,69.42838469]
[1745331637091,10.74351,1647.3,1647.2,69.42838469]
[1745331637297,10.74351,1647.3,1647.2,68.01702469]
[1745331637486,10.84277143,1647.3,1647.2,66.56529469]
[1745331637791,10.74351,1647.3,1647.2,66.56529469]
[1745331639185,4.42151,1647.3,1647.2,66.56529469]
[1745331640290,10.74351,1647.3,1647.2,66.56529469]
[1745331642193,4.42151,1647.3,1647.2,66.56529469]
[1745331642393,4.42151,1647.3,1647.2,67.77908469]
[1745331642597,4.42151,1647.3,1647.2,66.56529469]
[1745331642780,4.42151,1647.3,1647.2,69.39599469]
[1745331642986,4.42151,1647.3,1647.2,70.60978469]
[1745331643188,4.42151,1647.3,1647.2,69.39599469]
[1745331643491,1.21371,1647.3,1647.2,74.39599469]
[1745331643696,1.21371,1647.3,1647.2,78.81754469]
[1745331643880,1.21371,1647.3,1647.2,77.60379469]
[1745331645195,1.21371,1647.3,1647.2,78.81758469]
[1745331645597,1.21366,1647.4,1647.3,1.21363]
[1745331645791,1.20672751,1647.4,1647.3,1.21363]
[1745331646090,1.21371,1647.3,1647.2,69.11079469]
[1745331646286,1.21371,1647.3,1647.2,72.5928622]
[1745331646491,1.21371,1647.3,1647.2,61.98241219]
[1745331646689,1.31296639,1647.3,1647.2,61.98241219]
[1745331646892,1.21371,1647.3,1647.2,61.98241219]
[1745331647194,7.53571,1647.3,1647.2,66.98241219]
[1745331647587,10.74351,1647.3,1647.2,60.60818219]
[1745331647801,10.84276044,1647.3,1647.2,56.23503219]
[1745331647988,10.84276996,1647.3,1647.2,54.55105219]
[1745331648188,6.066,1647.0,1645.9,3.2078]
[1745331648488,5.86089996,1646.9,1646.3,3.2078]
[1745331648689,1.21423,1646.6,1646.5,3.2078]
[1745331648992,1.21423,1646.6,1646.5,2.7023]
[1745331649183,1.21423,1646.6,1646.5,10.9101]
[1745331649594,1.21423,1646.6,1646.5,5.9101]
[1745331650395,1.21423,1646.6,1646.5,10.9101]
[1745331651295,0.00910718,1646.7,1646.5,10.9101]
[1745331651496,1.21423,1646.6,1646.5,7.12437]
[1745331651794,1.22331718,1646.7,1646.5,10.9101]
[1745331652000,0.00910718,1646.7,1646.6,1.21423]
[1745331652196,1.22326718,1646.7,1646.6,1.21423]
[1745331652493,1.22326718,1646.7,1646.6,6.21423]
[1745331652698,1.21423,1646.6,1646.5,5.9101]
[1745331653195,1.21423,1646.6,1646.5,2.7023]
[1745331653902,3.81593,1646.6,1646.5,2.7023]
[1745331654397,1.2143,1646.5,1646.4,3.49810718]
[1745331654592,3.816,1646.5,1646.4,3.48900718]
[1745331654793,6.69791088,1646.5,1646.4,1.14139718]
[1745331655187,13.01991088,1646.5,1646.4,1.14139718]
[1745331655393,13.01991088,1646.5,1646.4,7.18e-06]
[1745331655992,12.9206,1646.5,1646.4,7.18e-06]
[1745331656202,13.01990797,1646.5,1646.4,7.18e-06]
[1745331656601,13.01990633,1646.5,1646.4,7.18e-06]
[1745331656997,10.138,1646.5,1646.4,7.18e-06]
[1745331657202,1.2143,1646.5,1646.4,7.18e-06]
[1745331657701,1.21425,1646.6,1646.4,7.18e-06]
[1745331657903,1.2143,1646.5,1646.4,3.20780718]
[1745331658501,1.2143,1646.5,1646.4,6.06010718]
[1745331659001,1.21427,1646.6,1646.5,1.21427]
[1745331659300,1.21423,1646.6,1646.5,2.6126]
[1745331660292,1.21423,1646.6,1646.5,8.82684]
[1745331660601,1.22326718,1646.7,1646.6,1.21423]
[1745331660907,1e-08,1646.7,1646.6,4.42203]
[1745331661108,1e-08,1646.7,1646.6,9.42203]
[1745331661404,3.03392,1647.5,1646.8,3.03521]
[1745331661599,1.21379,1647.2,1647.1,3.2078]
[1745331661800,1.21379,1647.2,1647.1,7.06816]
[1745331661997,1.21394,1647.0,1646.9,78.1988]
[1745331662197,1.21394,1647.0,1646.9,77.24875284]
[1745331662403,9.52101268,1647.0,1646.9,3.49]
[1745331662603,1.21423,1646.6,1646.5,0.00910718]
[1745331662806,1.21423,1646.6,1646.5,3.49910718]
[1745331663001,4.42203,1646.6,1646.5,3.49910718]
[1745331663204,7.53623,1646.6,1646.5,3.49910718]
[1745331663600,7.63553117,1646.6,1646.5,3.49910718]
[1745331663897,7.53623,1646.6,1646.5,3.49910718]
[1745331664705,7.53623,1646.6,1646.5,6.14560718]
[1745331665201,1.21423,1646.6,1646.5,6.14560718]
[1745331666105,6.33110718,1647.1,1646.6,3.03558]
[1745331666404,1.21403,1646.9,1646.8,3.2078]
[1745331666710,1.21408,1646.8,1646.7,2.8023]
[1745331667002,1.21405,1646.9,1646.7,6.2923]
[1745331667194,1.21401,1646.9,1646.8,3.2078]
[1745331667399,1.21408,1646.8,1646.7,6.2923]
[1745331667600,3.93198,1646.8,1646.7,6.2923]
[1745331668708,1.21408,1646.8,1646.7,6.2923]
[1745331668908,1.21408,1646.8,1646.7,3.49]
[1745331669411,3.75818,1646.8,1646.7,3.49]
[1745331669604,1.21408,1646.8,1646.7,3.49]
[1745331669908,1.21408,1646.8,1646.7,6.1324]
[1745331670708,2.5441,1647.0,1646.7,11.1324]
[1745331670900,1.21401,1646.9,1646.8,3.2078]
[1745331671212,1.21401,1646.9,1646.8,4.42188]
[1745331671400,1.21401,1646.9,1646.8,3.2078]
[1745331671904,0.00910718,1647.1,1646.8,3.2078]
[1745331672205,1.22296718,1647.1,1647.0,3.2078]
[1745331673005,1.21394,1647.0,1646.9,2.6049]
[1745331673401,3.98294,1647.0,1646.9,2.6049]
[1745331673811,1.21394,1647.0,1646.9,2.6049]
[1745331674308,0.00910718,1647.1,1646.9,2.6049]
[1745331674605,0.00910718,1647.1,1647.0,4.42174]
[1745331674908,1.22296718,1647.1,1647.0,3.2078]
[1745331675099,1.22296718,1647.1,1647.0,2.7081]
[1745331676411,0.00910718,1647.1,1647.0,7.12984]
[1745331676803,1.22296718,1647.1,1647.0,7.12984]
[1745331677002,1.22296718,1647.1,1647.0,5.9159]
[1745331677602,0.00910718,1647.1,1647.0,7.12984]
[1745331677811,0.00910718,1647.1,1647.0,12.12984]
[1745331678002,1.22296718,1647.1,1647.0,12.12984]
[1745331679204,0.00910718,1647.1,1647.0,7.12984]
[1745331679614,1.22296718,1647.1,1647.0,7.12984]
[1745331681004,1.22296718,1647.1,1647.0,5.9159]
[1745331681306,1.22296718,1647.1,1646.8,3.2078]
[1745331681307,1.21401,1646.9,1646.8,3.2078]
[1745331681614,1.21401,1646.9,1646.8,5.7653]
[1745331681815,1.21401,1646.9,1646.8,6.97938]
[1745331682308,1.21401,1646.9,1646.8,5.7653]
[1745331683607,1.21401,1646.9,1646.8,6.97938]
[1745331683808,1.21401,1646.9,1646.8,5.7653]
[1745331685008,1.21401,1646.9,1646.8,6.97938]
[1745331685208,1.21401,1646.9,1646.8,5.7653]
[1745331685404,1.21408,1646.8,1646.7,3.49]
[1745331686107,3.77858,1646.8,1646.7,3.49]
[1745331686515,8.77858,1646.8,1646.7,3.49]
[1745331686711,8.87786553,1646.8,1646.7,3.49]
[1745331686919,2.6945,1646.9,1646.7,3.49]
[1745331687212,2.5645,1647.0,1646.8,3.2078]
[1745331687413,1.22296718,1647.1,1647.0,1.21394]
[1745331687615,0.00910718,1647.1,1647.0,1.21394]
[1745331688113,0.00910718,1647.1,1647.0,4.42174]
[1745331688615,1.22296718,1647.1,1647.0,3.2078]
[1745331688811,1.22296718,1647.1,1646.9,1.21395]
[1745331688812,1.21394,1647.0,1646.9,4.42175]
[1745331689005,1.21401,1646.9,1646.8,4.01274]
[1745331689211,1.21408,1646.8,1646.7,4.70415]
[1745331689516,3.92208,1646.8,1646.7,3.49]
[1745331689911,8.92208,1646.8,1646.7,3.49]
[1745331690418,8.92208,1646.8,1646.5,0.00910718]
[1745331690419,1.21423,1646.6,1646.5,0.00910718]
[1745331690609,4.52131057,1646.6,1646.5,3.49510718]
[1745331690810,9.52131057,1646.6,1646.5,3.49510718]
[1745331691216,15.84331057,1646.6,1646.5,2.01970718]
[1745331691412,15.84331057,1646.6,1646.5,0.04681718]
[1745331691721,15.84331057,1646.6,1646.5,7.18e-06]
[1745331692518,10.84331057,1646.6,1646.5,7.18e-06]
[1745331692721,10.84333063,1646.6,1646.5,7.18e-06]
[1745331693219,4.52133063,1646.6,1646.5,7.18e-06]
[1745331693617,9.52133063,1646.6,1646.5,7.18e-06]
[1745331694216,15.84333063,1646.6,1646.5,7.18e-06]
[1745331694616,22.26704451,1646.6,1646.5,7.18e-06]
[1745331695119,24.81344451,1646.6,1646.5,7.18e-06]
[1745331695319,13.38973063,1646.6,1646.5,7.18e-06]
[1745331695518,10.18193063,1646.6,1646.5,7.18e-06]
[1745331695716,8.8684,1646.6,1646.5,7.18e-06]
[1745331695917,10.08263,1646.6,1646.5,2.57730718]
[1745331696318,3.2078,1646.8,1646.5,3.79157718]
[1745331696621,1.21423,1646.6,1646.5,2.57730718]
[1745331697214,1.21423,1646.6,1646.5,3.79160718]
[1745331697517,3.04388718,1647.1,1646.7,1.2141]
[1745331697814,1.21401,1646.9,1646.8,2.5773]
[1745331698320,1.21401,1646.9,1646.8,3.79138]
[1745331698518,1.21401,1646.9,1646.8,2.5773]
[1745331702124,3.03523,1646.8,1646.5,3.20780718]
[1745331702325,1.21423,1646.6,1646.5,2.58390718]
[1745331702824,1.21423,1646.6,1646.5,7.18e-06]
[1745331703322,4.52132892,1646.6,1646.5,7.18e-06]
[1745331703517,9.52132892,1646.6,1646.5,7.18e-06]
[1745331703722,12.02962892,1646.6,1646.5,7.18e-06]
[1745331704122,18.35162892,1646.6,1646.5,7.18e-06]
[1745331707322,13.25233,1646.6,1646.5,7.18e-06]
[1745331707624,7.63552889,1646.6,1646.5,7.18e-06]
[1745331707925,7.53623,1646.6,1646.5,7.18e-06]
[1745331708319,1.21423,1646.6,1646.5,7.18e-06]
[1745331708516,1.21423,1646.6,1646.5,5.00000718]
[1745331708827,1.21423,1646.6,1646.5,7.18e-06]
[1745331712319,1.21423,1646.6,1646.5,3.82440718]
[1745331712531,1.21423,1646.6,1646.5,7.61010718]
[1745331712831,1.21423,1646.6,1646.5,12.03220718]
[1745331713033,1.21423,1646.6,1646.5,10.81790718]
[1745331713425,1.21423,1646.6,1646.5,2.61010718]
[1745331714027,3.03523,1646.8,1646.5,12.03220718]
[1745331714223,3.03523,1646.8,1646.5,7.03220718]
[1745331714620,1.21423,1646.6,1646.5,5.81790718]
[1745331715428,1.21423,1646.6,1646.5,7.03220718]
[1745331715825,1.21423,1646.6,1646.5,12.03220718]
[1745331716225,6.07061,1646.8,1646.5,10.81790718]
[1745331716425,1.21423,1646.6,1646.5,7.03219718]
[1745331716723,1.21423,1646.6,1646.5,7.03218718]
[1745331717126,3.03521,1646.8,1646.5,10.81790718]
[1745331717321,1.21423,1646.6,1646.5,7.03216718]
[1745331717737,1.21423,1646.6,1646.5,12.03216718]
[1745331717925,1.21423,1646.6,1646.5,5.81790718]
[1745331718530,1.21423,1646.6,1646.5,7.03220718]
[1745331718930,1.21423,1646.7,1646.6,1.21419]
[1745331719346,1.21406,1646.9,1646.8,1.21405]
[1745331719638,1.21406,1646.9,1646.8,6.6918]
[1745331721230,1.21406,1646.9,1646.8,9.3211]
[1745331722343,0.00910718,1647.1,1646.8,12.35631]
[1745331722543,1.21376,1647.3,1647.2,1.21378]
[1745331722741,1.21376,1647.3,1647.2,81.6798]
[1745331723144,1.21376,1647.3,1647.2,78.472]
[1745331724341,1.21376,1647.3,1647.2,81.1591]
[1745331724539,0.00910718,1647.4,1647.3,1.21371]
[1745331724744,0.00217469,1647.4,1647.2,85.58066]
[1745331724943,1.21586469,1647.4,1647.3,1.21371]
[1745331725148,1.21581469,1647.4,1647.3,1.21371]
[1745331725354,0.00217469,1647.4,1647.3,1.21371]
[1745331725948,1.2134,1647.8,1647.4,3.03395]
[1745331726144,1.21335,1647.8,1647.7,4.42121]
[1745331726456,1.21335,1647.8,1647.7,3.483]
[1745331726652,2.6693,1648.0,1647.7,4.69642]
[1745331726854,2.6693,1648.0,1647.8,1.21335]
[1745331727044,2.67840718,1648.0,1647.7,3.483]
[1745331727249,1.21335,1647.8,1647.7,3.483]
[1745331727552,1.21335,1647.8,1647.7,4.69642]
[1745331727957,1.21335,1647.8,1647.7,3.483]
[1745331728153,2.67840718,1648.0,1647.7,4.69642]
[1745331728547,1.21335,1647.8,1647.7,3.483]
[1745331729550,1.21335,1647.8,1647.6,3.2078]
[1745331729551,3.0337,1647.7,1647.3,2.6155]
[1745331729753,1.21357,1647.5,1647.4,3.482]
[1745331730054,1.31280032,1647.5,1647.4,3.482]
[1745331730256,10.32900032,1647.5,1647.4,3.482]
[1745331731052,18.53680032,1647.5,1647.4,1.89384]
[1745331731260,1.21371,1647.3,1647.2,74.989]
[1745331731458,1.31295977,1647.3,1647.2,78.46406751]
[1745331731659,9.52075977,1647.3,1647.2,78.46406751]
[1745331731859,9.52075977,1647.3,1647.2,77.17142751]
[1745331732361,15.84275977,1647.3,1647.2,75.90737751]
[1745331732752,10.84275977,1647.3,1647.2,75.90737751]
[1745331732952,7.53571,1647.3,1647.2,75.90737751]
[1745331733162,7.6349591,1647.3,1647.2,75.90737751]
[1745331734153,1.21371,1647.3,1647.2,75.90737751]
[1745331735365,3.90581,1647.3,1647.2,75.90737751]
[1745331735958,4.00505133,1647.3,1647.2,75.90737751]
[1745331736258,10.32705133,1647.3,1647.2,75.90737751]
[1745331736467,15.32705133,1647.3,1647.2,72.27629751]
[1745331736661,10.32705133,1647.3,1647.2,72.27629751]
[1745331737258,4.00505133,1647.3,1647.2,72.27629751]
[1745331737764,1.21371,1647.3,1647.2,72.27629751]
[1745331738165,1.21371,1647.3,1647.2,75.06199751]
[1745331738662,1.21371,1647.3,1647.2,78.26979751]
[1745331738856,1.21371,1647.3,1647.2,75.06199751]
[1745331739063,1.21371,1647.3,1647.2,78.26979751]
[1745331741457,1.2136,1647.5,1647.2,83.26979751]
[1745331741660,1.21356,1647.6,1647.5,0.00693249]
[1745331741862,3.90886,1647.6,1647.5,3.48493249]
[1745331742057,2.7466,1647.9,1647.6,0.00693249]
[1745331742267,1.21342,1647.7,1647.6,0.00693249]
[1745331742659,1.20655751,1647.6,1647.5,6.3033]
[1745331744060,1.20655751,1647.6,1647.5,7.51687]
[1745331744761,1.21346,1647.7,1647.6,1.21339]
[1745331745066,1.21346,1647.7,1647.6,6.99659]
[1745331745264,1.21346,1647.7,1647.6,11.99659]
[1745331745467,1.21346,1647.7,1647.6,6.99659]
[1745331745668,1.21346,1647.7,1647.6,5.7832]
[1745331745869,2.75200718,1648.0,1647.6,5.7832]
[1745331746064,1.31250112,1647.9,1647.7,2.5925]
[1745331746262,1.2133,1647.9,1647.7,2.5925]
[1745331746661,1.21335,1647.8,1647.7,2.5925]
[1745331746862,3.95623,1647.9,1647.7,2.5925]
[1745331747157,2.7429,1647.9,1647.7,3.8059]
[1745331747364,3.95619,1647.9,1647.7,2.5925]
[1745331747669,3.95624,1647.9,1647.7,2.5925]
[1745331748261,0.00910718,1648.0,1647.7,2.5925]
[1745331748561,0.00910718,1648.0,1647.8,4.42113]
[1745331748761,0.00910718,1648.0,1647.9,6.164]
[1745331749068,1.22230718,1648.0,1647.9,2.687]
[1745331749268,1.21359,1647.5,1647.3,2.687]
[1745331749470,1.21359,1647.5,1647.4,3.477]
[1745331749769,4.52061951,1647.5,1647.4,3.477]
[1745331749968,7.13461951,1647.5,1647.4,3.477]
[1745331750168,13.45661951,1647.5,1647.4,3.477]
[1745331750671,18.45661951,1647.5,1647.4,3.477]
[1745331750876,18.45663728,1647.5,1647.4,3.477]
[1745331751577,25.22714949,1647.5,1647.4,2.21152]
[1745331752459,25.22716142,1647.5,1647.4,2.21152]
[1745331755773,25.2271549,1647.5,1647.4,2.21152]
[1745331756372,25.2271549,1647.5,1647.4,0.60683]
[1745331756571,1.21371,1647.3,1647.2,70.08992751]
[1745331756773,4.52076269,1647.3,1647.1,0.00910718]
[1745331757071,1.21423,1646.6,1646.5,74.964]
[1745331757275,0.09925269,1646.6,1646.5,82.3707]
[1745331757473,1.21411,1646.8,1646.6,1.21422]
[1745331757676,1.21411,1646.8,1646.7,2.7144]
[1745331757868,4.5211935,1646.8,1646.7,2.7144]
[1745331758176,10.8431935,1646.8,1646.7,2.7144]
[1745331758378,7.6353635,1646.8,1646.7,2.7144]
[1745331758568,6.4212835,1646.8,1646.7,2.7144]
[1745331758768,6.4212835,1646.8,1646.7,3.92856]
[1745331758973,6.322,1646.8,1646.7,3.92856]
[1745331759169,0.00910718,1646.9,1646.8,1.21408]
[1745331759370,0.10837173,1646.9,1646.8,1.21408]
[1745331759579,1e-08,1646.9,1646.8,6.21408]